bitfinex/quotes_ETHUSD_20240602
["timestamp","ask_amount","ask_price","bid_price","bid_amount"]
[1717336978762,2.57377308,3795.8,3795.7,0.554]
[1717336980435,2.57377308,3795.8,3795.0,2.63504]
[1717336980671,2.57377308,3795.8,3795.5,0.554]
[1717336982276,2.63456,3795.7,3795.0,2.63504]
[1717336982446,2.63456,3795.7,3794.7,2.63523]
[1717336982646,0.10440322,3795.6,3795.2,0.554]
[1717336983170,0.10440322,3795.6,3795.3,0.554]
[1717336997708,0.10440322,3795.6,3795.5,0.554]
[1717336999602,0.10440322,3795.6,3795.4,0.554]
[1717337004549,0.10440322,3795.6,3794.7,2.63523]
[1717337004752,0.10440322,3795.6,3795.3,0.554]
[1717337004905,2.63456,3795.7,3795.3,0.554]
[1717337005306,0.10425243,3795.6,3795.3,0.554]
[1717337006405,0.10425243,3795.6,3795.5,0.554]
[1717337009940,0.37813367,3795.6,3794.9,4.89646]
[1717337010152,0.10425243,3795.6,3795.4,0.554]
[1717337017670,0.10425243,3795.6,3794.9,4.89646]
[1717337018003,0.10425243,3795.6,3795.4,0.554]
[1717337018702,0.10425243,3795.6,3794.9,4.89646]
[1717337018905,0.10425243,3795.6,3795.4,0.554]
[1717337019062,2.63653367,3795.6,3795.4,0.554]
[1717337019395,2.53228124,3795.6,3795.4,0.554]
[1717337019557,0.10432231,3795.5,3795.4,0.554]
[1717337026766,0.10432231,3795.5,3795.2,0.554]
[1717337027794,0.10432231,3795.5,3795.4,0.554]
[1717337028181,0.10432231,3795.5,3795.3,0.554]
[1717337028500,0.10432231,3795.5,3794.9,4.89646]
[1717337028666,0.10432231,3795.5,3795.3,0.554]
[1717337030620,0.10432231,3795.5,3794.9,4.89646]
[1717337030823,0.10432231,3795.5,3795.2,0.554]
[1717337033545,0.10432231,3795.5,3795.1,2.63492]
[1717337033820,0.5696296,3795.9,3795.4,0.554]
[1717337034125,0.6596103,3795.8,3795.4,0.554]
[1717337034326,4.98439,3795.7,3794.9,2.3558]
[1717337034483,4.98439,3795.7,3794.8,2.63516]
[1717337034679,0.10430022,3795.6,3795.3,0.554]
[1717337034925,0.50886902,3795.5,3795.3,0.554]
[1717337035239,0.10437012,3795.4,3795.3,0.554]
[1717337036324,0.10437012,3795.4,3794.8,2.63516]
[1717337036482,2.73915012,3795.4,3794.6,2.3558]
[1717337036681,2.63491,3795.2,3794.4,2.63542]
[1717337036911,2.63491,3795.2,3794.8,0.554]
[1717337037124,0.10417886,3795.1,3794.8,0.554]
[1717337037680,0.10417886,3795.1,3794.4,2.63542]
[1717337038174,0.10417886,3795.1,3794.7,0.554]
[1717337038607,2.3498,3794.9,3794.2,0.41247709]
[1717337038807,2.3498,3794.9,3794.2,0.96647709]
[1717337039076,2.63506,3795.0,3794.8,0.554]
[1717337039621,0.10400229,3794.9,3794.8,0.554]
[1717337040928,0.10400229,3794.9,3794.2,5.40385709]
[1717337041098,0.10400229,3794.9,3794.7,0.554]
[1717337042148,2.63483,3795.4,3794.8,2.9098]
[1717337042435,2.63483,3795.4,3795.0,0.554]
[1717337042594,0.498463,3795.3,3795.0,0.554]
[1717337043199,0.498463,3795.3,3794.8,2.3558]
[1717337043401,2.63492,3795.2,3794.3,2.2618]
[1717337043620,2.63492,3795.2,3795.0,0.554]
[1717337044654,2.63492,3795.2,3794.9,0.554]
[1717337044948,2.4336,3795.1,3794.3,2.2618]
[1717337045108,2.4336,3795.1,3794.8,0.554]
[1717337045709,2.4336,3795.1,3794.6,0.554]
[1717337045942,2.63505,3795.0,3793.8,4.89761]
[1717337046146,2.4336,3794.9,3794.5,0.554]
[1717337046898,2.4336,3794.9,3793.8,4.89761]
[1717337047128,2.4336,3794.9,3794.6,0.554]
[1717337047445,2.940465,3794.9,3794.6,0.554]
[1717337047609,2.940465,3794.9,3794.5,0.554]
[1717337047828,2.940465,3794.9,3793.8,4.89761]
[1717337047999,2.63519,3794.8,3794.5,0.554]
[1717337049803,2.63519,3794.8,3794.4,0.554]
[1717337050740,0.10396183,3794.7,3794.4,0.554]
[1717337051103,2.63519,3794.8,3794.4,0.554]
[1717337051334,2.4514,3794.5,3794.4,0.554]
[1717337051555,2.4514,3794.5,3793.8,2.63581]
[1717337051846,2.4514,3794.5,3794.3,0.554]
[1717337051847,2.55536183,3794.5,3794.3,0.554]
[1717337054251,2.55536183,3794.5,3793.8,2.63581]
[1717337054559,2.55536183,3794.5,3794.1,0.554]
[1717337054709,3.07443701,3794.5,3794.1,0.554]
[1717337054910,3.07443701,3794.5,3794.2,0.554]
[1717337055104,2.63546,3794.4,3794.2,0.554]
[1717337055305,2.63546,3794.4,3793.4,2.63609]
[1717337055555,0.10360494,3794.3,3794.1,0.554]
[1717337062827,0.10360494,3794.3,3794.2,0.554]
[1717337063669,2.4514,3794.5,3794.2,0.554]
[1717337063865,2.4514,3794.5,3794.4,0.554]
[1717337064575,2.63524,3794.8,3794.4,0.554]
[1717337064774,2.898764,3794.8,3794.4,0.554]
[1717337065131,2.898764,3794.8,3793.8,4.95041]
[1717337065349,2.898764,3794.8,3794.3,0.554]
[1717337065788,0.10364174,3794.7,3794.3,0.554]
[1717337066278,2.898764,3794.8,3794.3,0.554]
[1717337066279,0.10364174,3794.6,3794.3,0.554]
[1717337066684,0.5370664,3794.7,3794.3,2.8686]
[1717337066907,0.5370664,3794.7,3794.3,0.554]
[1717337066908,0.10364174,3794.5,3794.3,0.554]
[1717337067221,0.5370664,3794.7,3794.3,0.554]
[1717337067354,0.1036491,3794.4,3794.3,0.554]
[1717337067902,2.898764,3794.8,3794.3,0.554]
[1717337068059,0.1036491,3794.4,3794.3,0.554]
[1717337068385,2.898764,3794.8,3794.3,0.554]
[1717337068582,0.1036491,3794.4,3794.3,0.554]
[1717337068788,2.898764,3794.8,3794.3,0.554]
[1717337069394,0.1036491,3794.7,3794.3,0.554]
[1717337069693,2.898764,3794.8,3794.3,0.554]
[1717337069855,0.1036491,3794.6,3794.3,0.554]
[1717337072761,2.5044491,3794.6,3794.3,0.554]
[1717337074200,0.1036491,3794.6,3794.3,0.554]
[1717337074577,0.2898764,3794.7,3794.3,0.554]
[1717337074776,0.10364544,3794.5,3794.3,0.554]
[1717337074987,2.63533,3794.6,3794.3,0.554]
[1717337075193,0.10364544,3794.4,3794.3,0.554]
[1717337075388,2.63533,3794.6,3794.3,0.554]
[1717337075619,0.10364544,3794.4,3794.3,0.554]
[1717337075791,2.63533,3794.6,3794.3,0.554]
[1717337075986,0.10364544,3794.4,3794.3,0.554]
[1717337076531,3.16793064,3794.6,3794.3,0.554]
[1717337076677,0.1036123,3794.4,3794.3,0.554]
[1717337076877,2.63533,3794.6,3794.3,0.554]
[1717337077089,0.1036123,3794.4,3794.3,0.554]
[1717337077375,2.63533,3794.6,3794.3,0.554]
[1717337077581,3.16793064,3794.6,3794.3,0.554]
[1717337077898,0.1036123,3794.5,3794.3,0.554]
[1717337079375,0.67344967,3794.5,3794.3,0.554]
[1717337079573,0.67344967,3794.5,3794.1,0.554]
[1717337080529,0.67344967,3794.5,3793.8,2.63581]
[1717337080725,3.07424967,3794.5,3794.1,0.554]
[1717337081019,3.10435791,3794.5,3794.1,0.554]
[1717337082016,3.10435791,3794.5,3793.8,2.63581]
[1717337082214,2.63546,3794.4,3794.1,0.554]
[1717337082691,0.1036123,3794.3,3794.1,0.554]
[1717337084613,0.1036123,3794.3,3793.7,2.2657]
[1717337084818,0.1036123,3794.3,3794.0,0.554]
[1717337085840,0.1036123,3794.3,3793.7,2.2657]
[1717337086018,0.1036123,3794.3,3794.0,0.554]
[1717337088520,0.1036123,3794.3,3793.7,2.2657]
[1717337088697,0.1036123,3794.3,3794.0,0.554]
[1717337089107,0.1036123,3794.3,3793.7,2.2657]
[1717337089395,2.437,3794.1,3793.5,2.63606]
[1717337089745,0.1035387,3794.0,3793.7,0.554]
[1717337090796,2.63562,3794.2,3793.3,2.4878]
[1717337091028,2.63562,3794.2,3793.6,0.554]
[1717337091029,3.198282,3794.2,3793.6,0.554]
[1717337091232,2.63575,3794.0,3793.3,2.4878]
[1717337091462,2.63575,3794.0,3793.2,2.63628]
[1717337091599,2.63575,3794.0,3793.4,0.554]
[1717337091916,0.10339152,3793.9,3793.4,0.554]
[1717337092333,0.10339152,3793.9,3793.2,2.63628]
[1717337092499,0.10339152,3793.9,3793.5,0.554]
[1717337092694,0.62100567,3793.9,3793.2,2.63628]
[1717337092919,0.10339152,3793.9,3793.4,0.554]
[1717337098343,0.10339152,3793.9,3793.2,2.63628]
[1717337098836,0.10339152,3793.9,3793.4,0.554]
[1717337099709,0.10339152,3793.9,3793.2,2.63628]
[1717337099932,0.10339152,3793.9,3793.5,0.554]
[1717337101411,0.10339152,3793.9,3793.2,2.63628]
[1717337101609,0.10339152,3793.9,3793.5,0.554]
[1717337102442,0.10339152,3793.9,3793.2,2.63628]
[1717337102626,0.10339152,3793.9,3793.4,0.554]
[1717337103548,0.10339152,3793.9,3793.6,0.554]
[1717337109156,0.10339152,3793.9,3793.8,0.554]
[1717337109455,0.56991747,3794.2,3793.8,0.554]
[1717337109670,2.63555,3794.3,3793.6,2.2898]
[1717337109671,2.63555,3794.3,3794.0,0.554]
[1717337110027,0.10335839,3794.2,3794.0,0.554]
[1717337110251,3.148185,3794.3,3794.0,0.554]
[1717337110623,0.10335839,3794.2,3794.0,0.554]
[1717337110834,2.63533,3794.6,3794.0,0.554]
[1717337111167,2.63533,3794.6,3794.4,0.554]
[1717337111168,0.10349089,3794.5,3794.4,0.554]
[1717337111658,2.4908,3794.4,3794.2,0.554]
[1717337111859,0.10359025,3794.3,3794.2,0.554]
[1717337116067,0.10359025,3794.3,3794.1,0.554]
[1717337116860,0.10359025,3794.2,3794.1,0.554]
[1717337117067,5.12613,3794.6,3794.1,0.554]
[1717337117258,0.10359025,3794.5,3794.1,0.554]
[1717337117626,0.10359025,3794.5,3794.3,0.554]
[1717337119661,0.10359025,3794.5,3793.7,2.63589]
[1717337119985,0.10359025,3794.5,3794.2,0.554]
[1717337123363,2.63546,3794.4,3793.4,2.63614]
[1717337123686,2.55300128,3794.3,3793.7,0.554]
[1717337123984,3.18561,3794.2,3793.7,0.554]
[1717337124285,2.4494,3794.1,3793.7,0.554]
[1717337124450,0.10360128,3794.0,3793.7,0.554]
[1717337125251,0.10360128,3794.0,3793.4,2.63614]
[1717337125622,0.10360128,3794.0,3793.7,0.554]
[1717337126100,0.10360128,3794.0,3793.4,2.63614]
[1717337126471,0.10360128,3794.0,3793.7,0.554]
[1717337126890,0.67746241,3794.0,3793.7,0.554]
[1717337127268,0.67746241,3794.0,3793.4,2.63614]
[1717337127505,0.10360128,3794.0,3793.6,0.554]
[1717337127668,2.73940128,3794.0,3793.1,5.07716]
[1717337128014,2.73940128,3794.0,3793.5,0.554]
[1717337128159,2.73940128,3794.0,3793.1,5.07716]
[1717337128361,2.73940128,3794.0,3793.6,0.554]
[1717337128586,3.31328141,3794.0,3793.6,0.554]
[1717337130181,2.3544,3793.9,3793.6,0.554]
[1717337130359,2.63589,3793.8,3793.1,2.63636]
[1717337130711,2.73932198,3793.8,3793.3,0.554]
[1717337131128,2.73932198,3793.8,3793.1,2.63636]
[1717337131492,2.73932198,3793.8,3793.3,0.554]
[1717337131695,2.78859947,3793.8,3793.3,0.554]
[1717337133721,2.3544,3793.7,3793.3,0.554]
[1717337134025,0.15266165,3793.6,3793.3,0.554]
[1717337135749,0.15266165,3793.6,3793.5,0.554]
[1717337137744,0.15266165,3793.6,3793.1,2.63636]
[1717337137951,0.15266165,3793.6,3793.4,0.554]
[1717337139654,0.15266165,3793.6,3792.7,2.63661]
[1717337139804,0.15266165,3793.6,3793.3,0.554]
[1717337140404,0.15266165,3793.6,3792.7,2.63661]
[1717337140605,0.15266165,3793.6,3793.3,0.554]
[1717337141075,0.66695682,3793.6,3793.3,0.554]
[1717337141863,0.15266165,3793.6,3793.3,0.554]
[1717337142067,2.63608,3793.5,3792.7,2.63661]
[1717337142235,2.63608,3793.5,3792.9,0.554]
[1717337142436,0.15255489,3793.4,3793.1,0.554]
[1717337142637,0.15255489,3793.4,3793.3,0.554]
[1717337143314,2.63589,3793.8,3793.3,0.554]
[1717337143515,0.15252912,3793.7,3793.6,0.554]
[1717337143765,2.63589,3793.8,3793.6,0.554]
[1717337144067,0.15252912,3793.7,3793.6,0.554]
[1717337144252,0.15252912,3793.7,3792.9,2.3034]
[1717337144447,0.15252912,3793.7,3793.5,0.554]
[1717337144829,2.63589,3793.8,3793.5,0.554]
[1717337145029,0.15255859,3793.6,3793.5,0.554]
[1717337145286,2.63589,3793.8,3793.5,0.554]
[1717337145455,0.15255859,3793.6,3793.5,0.554]
[1717337145657,2.63589,3793.8,3793.5,0.554]
[1717337145894,0.15255859,3793.6,3793.5,0.554]
[1717337146919,2.63589,3793.8,3793.5,0.554]
[1717337147265,0.15255859,3793.7,3793.5,0.554]
[1717337147700,2.63589,3793.8,3792.9,4.93984]
[1717337147878,0.15255859,3793.6,3793.4,0.554]
[1717337148097,2.63589,3793.8,3793.4,0.554]
[1717337148284,3.145039,3793.8,3793.4,0.554]
[1717337148483,0.15255859,3793.7,3793.4,0.554]
[1717337148877,3.145039,3793.8,3793.4,0.554]
[1717337149081,3.145039,3793.8,3793.2,0.554]
[1717337149481,0.15255489,3793.7,3793.2,0.554]
[1717337151613,0.15255489,3793.7,3793.4,0.554]
[1717337151780,2.63589,3793.8,3793.4,0.554]
[1717337151977,0.15255489,3793.6,3793.4,0.554]
[1717337152279,2.63589,3793.8,3793.4,0.554]
[1717337152475,0.15255489,3793.5,3793.4,0.554]
[1717337152697,2.63589,3793.8,3793.4,0.554]
[1717337152889,0.15255489,3793.5,3793.4,0.554]
[1717337153428,2.63589,3793.8,3793.4,0.554]
[1717337153577,0.15255489,3793.5,3793.4,0.554]
[1717337153912,3.145039,3793.8,3792.9,4.93984]
[1717337154095,0.15255489,3793.5,3793.3,0.554]
[1717337154292,0.56997014,3793.7,3793.3,0.554]
[1717337154553,0.15255489,3793.4,3793.3,0.554]
[1717337154677,1.13611615,3793.7,3793.3,0.554]
[1717337155019,0.15255489,3793.6,3793.3,0.554]
[1717337155982,0.15255489,3793.6,3793.2,0.554]
[1717337157376,3.35860645,3793.6,3792.9,5.01104]
[1717337157576,2.78862489,3793.6,3793.3,0.554]
[1717337157832,3.37027198,3793.6,3793.3,0.554]
[1717337158920,3.37027198,3793.6,3792.9,5.01104]
[1717337159125,2.63621,3793.4,3792.4,2.63678]
[1717337159304,2.63621,3793.4,3793.1,0.554]
[1717337159683,0.15255489,3793.3,3793.1,0.554]
[1717337160984,0.15255489,3793.3,3793.2,0.554]
[1717337161341,0.15255489,3793.3,3792.6,2.63665]
[1717337161541,0.15255489,3793.3,3793.2,0.554]
[1717337164083,5.09766,3793.7,3793.2,0.554]
[1717337164254,0.15244445,3793.3,3792.9,5.0692]
[1717337164440,2.63596,3793.7,3793.1,0.554]
[1717337164441,2.3497,3793.6,3793.1,0.554]
[1717337164665,2.3497,3793.6,3792.9,5.0692]
[1717337164666,0.15244445,3793.2,3792.9,5.0692]
[1717337164961,2.63596,3793.7,3793.1,0.554]
[1717337165142,2.63596,3793.7,3793.3,0.554]
[1717337167543,2.63596,3793.7,3792.9,5.0692]
[1717337167773,2.63596,3793.7,3793.3,0.554]
[1717337167985,3.866526,3793.7,3793.3,0.554]
[1717337168689,3.866526,3793.7,3792.9,5.0692]
[1717337168893,3.866526,3793.7,3793.2,0.554]
[1717337170777,0.15243342,3793.6,3793.2,0.554]
[1717337171593,2.50213342,3793.6,3793.2,0.554]
[1717337176531,2.6361,3793.5,3792.6,2.63669]
[1717337176831,2.63624,3793.3,3792.6,2.63669]
[1717337177120,2.63624,3793.3,3792.9,0.554]
[1717337177287,0.15242235,3793.2,3792.9,0.554]
[1717337177914,0.5700435,3793.2,3792.9,0.554]
[1717337178122,0.15242235,3793.1,3792.9,0.554]
[1717337178329,0.72326294,3793.1,3792.2,5.06962]
[1717337178638,0.15242235,3793.1,3792.7,0.554]
[1717337180326,2.3497,3793.0,3792.7,0.554]
[1717337181017,0.15242235,3792.9,3792.7,0.554]
[1717337182705,5.07157,3792.8,3791.8,2.63722]
[1717337182906,0.15242235,3792.9,3792.1,4.93674]
[1717337183089,2.63643,3793.0,3792.7,0.554]
[1717337185779,0.15189954,3792.9,3792.7,0.554]
[1717337186188,0.15189954,3792.9,3792.1,4.93674]
[1717337186402,0.15189954,3792.9,3792.6,0.554]
[1717337188731,2.3449,3792.8,3792.6,0.554]
[1717337188877,2.63664,3792.7,3792.6,0.554]
[1717337189077,2.63664,3792.7,3792.3,0.554]
[1717337189317,2.63664,3792.7,3791.8,5.13546]
[1717337189533,0.15186641,3792.6,3792.2,0.554]
[1717337189832,0.15186641,3792.6,3792.1,0.554]
[1717337190327,0.15186641,3792.6,3791.8,5.13546]
[1717337190679,0.15186641,3792.6,3791.6,2.4982]
[1717337190680,2.63679,3792.5,3791.6,2.4982]
[1717337190874,2.3449,3792.4,3791.9,0.554]
[1717337191099,2.49653067,3792.4,3791.5,2.63746]
[1717337191641,2.49653067,3792.4,3791.8,0.554]
[1717337192015,2.63692,3792.3,3791.9,0.554]
[1717337192219,2.78838123,3792.3,3791.5,2.63746]
[1717337192399,2.63713,3792.0,3791.6,0.554]
[1717337192700,0.15146123,3792.3,3791.8,0.554]
[1717337192701,2.63692,3792.3,3791.8,0.554]
[1717337192899,0.15146123,3791.9,3791.8,0.554]
[1717337193217,0.15141334,3791.9,3791.8,0.554]
[1717337193397,2.63692,3792.3,3791.8,0.554]
[1717337193739,0.15136544,3791.9,3791.8,0.554]
[1717337193910,2.63692,3792.3,3791.8,0.554]
[1717337194110,0.15136544,3791.9,3791.8,0.554]
[1717337194318,2.63692,3792.3,3791.8,0.554]
[1717337194541,0.15135809,3791.9,3791.8,0.554]
[1717337194731,2.63692,3792.3,3791.8,0.554]
[1717337195041,3.16298856,3792.3,3791.8,0.554]
[1717337195218,0.15135809,3792.2,3791.8,0.554]
[1717337195419,3.16298856,3792.3,3791.8,0.554]
[1717337195720,0.15135809,3792.1,3791.8,0.554]
[1717337196037,0.15135809,3792.0,3791.8,0.554]
[1717337196222,3.16298856,3792.3,3791.8,0.554]
[1717337196426,0.15135809,3791.9,3791.7,0.554]
[1717337196726,2.63692,3792.3,3791.7,0.554]
[1717337196926,0.15133599,3791.8,3791.7,0.554]
[1717337197123,3.16298856,3792.3,3791.7,0.554]
[1717337197608,0.15133599,3792.2,3791.7,0.554]
[1717337201215,0.15133599,3792.2,3791.9,0.554]
[1717337201415,2.63692,3792.3,3791.9,0.554]
[1717337201654,0.15121807,3792.1,3791.7,0.554]
[1717337201949,2.63692,3792.3,3791.7,0.554]
[1717337202149,0.15121807,3792.0,3791.7,0.554]
[1717337202316,2.63692,3792.3,3791.7,0.554]
[1717337202839,0.15121807,3792.2,3791.7,0.554]
[1717337208351,0.15121807,3792.2,3791.9,0.554]
[1717337208860,2.63692,3792.3,3792.1,0.554]
[1717337215979,0.15123651,3792.2,3792.1,0.554]
[1717337216177,2.63692,3792.3,3792.1,0.554]
[1717337216707,0.15123651,3792.2,3791.9,0.554]
[1717337217080,2.63692,3792.3,3791.9,0.554]
[1717337217311,0.15123651,3792.1,3791.9,0.554]
[1717337217605,0.15123651,3792.0,3791.9,0.554]
[1717337217909,2.63692,3792.3,3791.9,0.554]
[1717337218504,0.15123651,3792.2,3791.9,0.554]
[1717337218866,2.63692,3792.3,3791.9,0.554]
[1717337219067,0.15123651,3792.1,3791.9,0.554]
[1717337219296,2.63692,3792.3,3791.9,0.554]
[1717337219503,0.15123651,3792.0,3791.9,0.554]
[1717337219809,0.15118124,3792.0,3791.9,0.554]
[1717337220123,0.15118124,3792.0,3791.6,0.554]
[1717337220406,0.15118124,3791.9,3791.6,0.554]
[1717337220912,2.4815,3792.1,3791.6,0.554]
[1717337221161,0.15118124,3791.8,3791.6,0.554]
[1717337221329,5.11861,3792.1,3791.6,0.554]
[1717337221532,0.15118124,3791.7,3791.6,0.554]
[1717337221715,5.11861,3792.1,3791.6,0.554]
[1717337221919,0.15118124,3791.7,3791.2,2.63767]
[1717337222131,5.11861,3792.1,3791.6,0.554]
[1717337222332,5.630471,3792.1,3791.6,0.554]
[1717337224016,2.63725,3791.9,3791.2,2.63767]
[1717337224216,2.3382,3791.8,3791.3,0.554]
[1717337224463,2.3382,3791.8,3791.4,0.554]
[1717337225556,2.3382,3791.8,3790.9,2.63788]
[1717337225758,2.3382,3791.8,3791.4,0.554]
[1717337226318,3.684945,3791.7,3790.9,2.63788]
[1717337226513,3.684945,3791.7,3790.9,3.19188]
[1717337226755,3.684945,3791.7,3791.1,0.554]
[1717337227545,2.6374,3791.7,3791.5,0.554]
[1717337227918,2.6374,3791.7,3791.3,0.554]
[1717337230589,2.6374,3791.7,3790.9,2.63788]
[1717337230590,2.6374,3791.7,3791.1,0.554]
[1717337230894,0.15041466,3791.6,3791.1,0.554]
[1717337231845,5.1151,3791.5,3790.5,2.63812]
[1717337232183,5.1151,3791.5,3791.1,0.554]
[1717337232355,0.15041466,3791.4,3791.1,0.554]
[1717337233256,0.15041466,3791.4,3791.3,0.554]
[1717337233753,0.15041466,3791.4,3791.0,0.554]
[1717337235064,0.15041466,3791.4,3790.8,2.63796]
[1717337235400,0.15041466,3791.4,3791.0,0.554]
[1717337236297,2.4776,3791.3,3790.8,2.63796]
[1717337236511,0.15041466,3791.4,3790.8,2.63796]
[1717337236740,0.15025242,3791.2,3791.0,0.554]
[1717337236938,5.1151,3791.5,3791.0,0.554]
[1717337237096,0.15025242,3791.1,3791.0,0.554]
[1717337237299,5.1151,3791.5,3790.8,2.63796]
[1717337237499,0.15025242,3791.1,3791.0,0.554]
[1717337237811,5.1151,3791.5,3791.0,0.554]
[1717337238009,0.15025242,3791.4,3791.0,0.554]
[1717337238393,0.15025242,3791.4,3790.8,2.63796]
[1717337238609,0.15025242,3791.4,3791.1,0.554]
[1717337239647,0.15025242,3791.4,3791.3,0.554]
[1717337241746,2.63727,3791.8,3791.3,0.554]
[1717337241917,0.15036672,3791.4,3791.3,0.554]
[1717337242112,2.63727,3791.8,3791.3,0.554]
[1717337242322,0.15036672,3791.4,3791.3,0.554]
[1717337242550,2.63727,3791.8,3791.3,0.554]
[1717337242703,0.15036672,3791.4,3791.3,0.554]
[1717337242908,2.63727,3791.8,3791.3,0.554]
[1717337243112,0.15036672,3791.4,3791.3,0.554]
[1717337243620,2.63727,3791.8,3791.3,0.554]
[1717337244055,0.15036672,3791.7,3791.3,0.554]
[1717337244558,2.63727,3791.8,3791.3,0.554]
[1717337244710,0.15036672,3791.6,3791.3,0.554]
[1717337244908,2.63727,3791.8,3791.3,0.554]
[1717337245252,4.180757,3791.8,3791.3,0.554]
[1717337245547,0.15036672,3791.7,3791.3,0.554]
[1717337246050,0.15036672,3791.6,3791.3,0.554]
[1717337246554,4.180757,3791.8,3791.3,0.554]
[1717337246753,0.15036672,3791.5,3791.3,0.554]
[1717337247068,0.15036672,3791.5,3790.7,2.2869]
[1717337247069,0.15036672,3791.4,3790.7,2.2869]
[1717337247367,0.15036672,3791.4,3791.1,0.554]
[1717337248327,2.6372,3791.9,3791.3,0.554]
[1717337248527,2.6372,3791.9,3791.5,0.554]
[1717337248528,3.44111,3791.9,3791.5,0.554]
[1717337250456,2.63699,3792.2,3791.7,0.554]
[1717337250669,2.63699,3792.2,3792.0,0.554]
[1717337250959,2.4019,3792.5,3792.0,0.554]
[1717337251211,0.503867,3792.4,3792.0,0.554]
[1717337251392,0.503867,3792.4,3791.8,0.554]
[1717337255866,2.63677,3792.6,3792.0,0.554]
[1717337260679,0.15078692,3792.5,3792.0,0.554]
[1717337263997,0.15078692,3792.5,3792.1,2.3464]
[1717337264198,0.15078692,3792.5,3792.4,0.554]
[1717337264387,2.6365,3792.9,3792.4,0.554]
[1717337264583,0.15080906,3792.5,3792.4,0.554]
[1717337264790,2.6365,3792.9,3792.4,0.554]
[1717337264991,0.15080906,3792.5,3792.4,0.554]
[1717337265495,2.6365,3792.9,3792.4,0.554]
[1717337265678,0.15080906,3792.5,3792.4,0.554]
[1717337265872,2.6365,3792.9,3792.4,0.554]
[1717337266087,0.15080906,3792.5,3792.4,0.554]
[1717337266312,2.6365,3792.9,3792.4,0.554]
[1717337266509,0.15080906,3792.5,3792.4,0.554]
[1717337266710,2.6365,3792.9,3792.4,0.554]
[1717337266899,0.15080906,3792.5,3792.4,0.554]
[1717337267100,2.6365,3792.9,3792.4,0.554]
[1717337267299,0.15093062,3792.5,3792.4,0.554]
[1717337267515,2.6365,3792.9,3792.4,0.554]
[1717337267693,5.3076,3793.1,3792.6,0.554]
[1717337267893,0.53076,3793.0,3792.6,0.554]
[1717337271411,3.16719,3793.0,3792.6,0.554]
[1717337275730,0.15093062,3792.9,3792.6,0.554]
[1717337290851,0.15093062,3792.9,3792.4,0.554]
[1717337291408,0.72103152,3792.9,3792.4,0.554]
[1717337291609,2.6366,3792.8,3792.1,2.3464]
[1717337291907,3.76107767,3792.9,3791.0,9.95781]
[1717337291908,2.6369,3792.4,3791.7,5.10362]
[1717337292105,2.6369,3792.4,3791.8,0.554]
[1717337292370,3.07509048,3792.4,3791.8,0.554]
[1717337292565,0.1511702,3792.3,3791.8,0.554]
[1717337293267,0.1511702,3792.3,3792.0,0.554]
[1717337293765,0.1511702,3792.3,3791.7,2.4663]
[1717337293766,0.1511702,3792.3,3792.2,0.554]
[1717337294666,0.1511702,3792.3,3792.0,0.554]
[1717337312581,0.1511702,3792.3,3791.7,5.10363]
[1717337312790,0.1511702,3792.3,3792.0,0.554]
[1717337315824,0.1510744,3792.2,3792.0,0.554]
[1717337316171,5.59096,3792.7,3792.0,0.554]
[1717337316395,0.1510744,3792.1,3792.0,0.554]
[1717337316722,5.04096,3792.7,3792.0,0.554]
[1717337316870,2.63645,3793.0,3792.5,0.554]
[1717337320722,2.63645,3793.0,3792.1,2.63699]
[1717337320930,2.2534,3792.8,3792.1,2.63699]
[1717337321077,2.2534,3792.8,3792.5,0.554]
[1717337321391,0.15135439,3792.7,3792.5,2.9818]
[1717337321726,2.63645,3793.0,3792.5,2.9818]
[1717337322080,0.15135807,3792.6,3792.5,2.9818]
[1717337322276,2.63645,3793.0,3792.5,2.9818]
[1717337322678,0.15135807,3792.9,3792.5,2.9818]
[1717337323174,0.57008618,3793.3,3792.7,2.3408]
[1717337323482,0.15138018,3792.8,3792.7,2.3408]
[1717337323680,0.57001287,3793.6,3792.8,2.63651]
[1717337324012,0.15149438,3793.5,3793.4,0.554]
[1717337324217,5.0424,3794.1,3793.4,0.554]
[1717337324528,6.27864,3794.1,3793.6,0.554]
[1717337324816,6.27864,3794.1,3793.1,2.63632]
[1717337325127,2.4067,3793.8,3792.7,2.63659]
[1717337325325,2.4067,3793.8,3792.9,0.554]
[1717337325617,2.4067,3793.6,3792.9,0.554]
[1717337326119,0.55,3793.9,3792.5,0.554]
[1717337326120,2.4067,3793.3,3792.5,0.554]
[1717337327889,2.63637,3793.1,3791.9,4.92624]
[1717337328087,0.559307,3793.0,3792.4,0.554]
[1717337328679,2.63651,3792.9,3792.4,0.554]
[1717337328884,2.3044,3792.8,3792.5,0.554]
[1717337329216,2.8544217,3792.8,3792.5,0.554]
[1717337330144,2.8544217,3792.8,3791.9,4.92624]
[1717337330145,2.8544217,3792.8,3791.9,2.63714]
[1717337330462,2.8544217,3792.8,3792.4,0.554]
[1717337330662,2.3044,3792.7,3792.4,0.554]
[1717337331953,2.3044,3792.7,3791.3,2.2891]
[1717337332249,2.3044,3792.7,3792.2,0.554]
[1717337332474,0.494091,3792.6,3792.2,0.554]